bitfinex/quotes_BTCUSD_20210101
["timestamp","ask_amount","ask_price","bid_price","bid_amount"]
[1609493306571,0.29018957,29166.0,29164.0,5.10105077]
[1609493306770,0.29018957,29166.0,29164.0,5.09605077]
[1609493306969,0.29038957,29166.0,29164.0,5.09605077]
[1609493307373,0.29038957,29166.0,29165.0,0.008511]
[1609493307672,6.15,29166.0,29164.0,5.09605077]
[1609493307872,0.65557557,29165.0,29164.0,5.09605077]
[1609493308071,5.365386,29165.0,29164.0,5.09605077]
[1609493308297,5.0,29165.0,29164.0,5.10456277]
[1609493308595,0.29018957,29165.0,29164.0,5.37205394]
[1609493311299,0.29018957,29165.0,29164.0,5.57205394]
[1609493312099,0.29018957,29165.0,29164.0,5.37205394]
[1609493312300,0.29018957,29165.0,29164.0,5.57205394]
[1609493312501,0.29018957,29165.0,29164.0,5.37205394]
[1609493314520,0.68018957,29165.0,29164.0,5.37205394]
[1609493314821,0.29018957,29165.0,29164.0,5.37205394]
[1609493316182,0.35,29173.0,29164.0,5.40552206]
[1609493316183,0.29018957,29168.0,29164.0,5.40552206]
[1609493316383,0.29018957,29170.0,29167.0,0.008508]
[1609493316579,0.29018957,29170.0,29168.0,0.008502]
[1609493316788,0.79,29169.0,29168.0,0.008502]
[1609493316989,0.29038957,29170.0,29168.0,0.008502]
[1609493317383,0.29038957,29170.0,29165.0,0.40884154]
[1609493317581,0.29038957,29170.0,29166.0,0.008503]
[1609493317830,5.135,29169.0,29166.0,0.1498899]
[1609493318026,0.29018957,29169.0,29166.0,0.1498899]
[1609493318332,5.0,29171.0,29166.0,0.1498899]
[1609493318529,0.29018957,29170.0,29166.0,0.1498899]
[1609493318730,5.0,29170.0,29166.0,0.1498899]
[1609493318929,0.32,29169.0,29166.0,0.1498899]
[1609493319229,0.61038957,29169.0,29166.0,0.1498899]
[1609493319564,0.0002,29169.0,29166.0,0.1498899]
[1609493320330,0.23991357,29170.0,29166.0,0.1498899]
[1609493320928,0.23991357,29173.0,29166.0,0.1413869]
[1609493321129,5.0,29171.0,29166.0,0.1413869]
[1609493321329,0.23991357,29170.0,29166.0,0.14988875]
[1609493321544,0.23991357,29171.0,29166.0,0.14988875]
[1609493321948,5.0,29170.0,29166.0,0.14988875]
[1609493322150,0.23991357,29169.0,29166.0,0.14988875]
[1609493322349,0.455,29169.0,29166.0,0.14988875]
[1609493322552,5.0,29170.0,29166.0,0.008502]
[1609493322950,0.23991357,29169.0,29166.0,0.008502]
[1609493323153,5.0,29169.0,29166.0,0.008502]
[1609493323352,0.23991357,29168.0,29167.0,0.008505]
[1609493323555,0.365386,29172.0,29167.0,0.10380188]
[1609493323755,5.0,29171.0,29167.0,0.10380188]
[1609493323955,0.0002,29170.0,29167.0,0.10380188]
[1609493324154,0.0002,29170.0,29168.0,0.008501]
[1609493324155,0.24011357,29170.0,29168.0,0.008501]
[1609493324758,0.24011357,29170.0,29167.0,0.10380188]
[1609493324759,1.900386,29169.0,29167.0,0.10380188]
[1609493324957,0.23991357,29168.0,29167.0,0.10380188]
[1609493325215,0.7852,29169.0,29167.0,0.11230588]
[1609493325458,0.23991357,29168.0,29167.0,0.11230588]
[1609493325656,0.24011357,29171.0,29167.0,0.11230588]
[1609493325858,5.24011357,29171.0,29168.0,0.008503]
[1609493326058,0.56491357,29170.0,29168.0,0.008503]
[1609493326257,0.23991357,29169.0,29168.0,0.008503]
[1609493326560,0.7,29169.0,29168.0,0.008503]
[1609493327170,0.885,29169.0,29168.0,0.008503]
[1609493327374,0.42491357,29169.0,29168.0,0.008503]
[1609493327673,0.185,29169.0,29168.0,0.008503]
[1609493328573,2.985,29169.0,29168.0,0.003503]
[1609493328877,0.185,29169.0,29168.0,0.003503]
[1609493329275,1.285,29169.0,29168.0,0.003503]
[1609493329475,0.185,29169.0,29168.0,0.003503]
[1609493330376,1.735,29169.0,29168.0,0.003503]
[1609493331212,1.7352,29169.0,29167.0,0.10380188]
[1609493331515,1.0,29168.0,29167.0,0.10380188]
[1609493331711,0.0002,29169.0,29167.0,0.10380188]
[1609493331913,0.24011357,29170.0,29167.0,0.10380188]
[1609493332113,0.365393,29169.0,29167.0,0.10380188]
[1609493332516,2.44,29168.0,29167.0,0.10380188]
[1609493332745,0.0002,29169.0,29167.0,0.10380188]
[1609493333044,0.24011357,29170.0,29167.0,0.10380188]
[1609493333547,0.365393,29169.0,29167.0,0.10380188]
[1609493333745,0.0002,29169.0,29167.0,0.10380188]
[1609493333944,1.935,29168.0,29167.0,0.10380188]
[1609493334146,0.0002,29169.0,29167.0,0.10380188]
[1609493334346,2.715393,29168.0,29167.0,0.10380188]
[1609493334546,0.365393,29168.0,29167.0,0.10380188]
[1609493334947,0.24011357,29170.0,29167.0,0.10380188]
[1609493334948,0.0002,29169.0,29167.0,0.10380188]
[1609493335250,3.715393,29168.0,29167.0,0.10380188]
[1609493335552,10.10780657,29168.0,29166.0,0.26743094]
[1609493335849,12.18290657,29167.0,29164.0,5.02613185]
[1609493336052,4.315393,29165.0,29164.0,4.95466387]
[1609493336252,5.315393,29165.0,29164.0,4.95466387]
[1609493336478,6.0,29165.0,29164.0,4.95466387]
[1609493336679,6.365393,29165.0,29164.0,4.95466387]
[1609493336878,7.342993,29165.0,29164.0,4.95466387]
[1609493337277,6.365393,29165.0,29164.0,4.95466387]
[1609493340280,7.342993,29165.0,29164.0,4.95466387]
[1609493340485,6.365393,29165.0,29164.0,4.95466387]
[1609493340681,7.342993,29165.0,29164.0,4.95466387]
[1609493340983,6.365393,29165.0,29164.0,4.95466387]
[1609493341481,7.342993,29165.0,29164.0,4.95466387]
[1609493344718,6.365393,29165.0,29164.0,4.95466387]
[1609493345309,6.340393,29165.0,29164.0,4.95466387]
[1609493346856,5.24011357,29170.0,29164.0,4.95466387]
[1609493347057,0.23991357,29169.0,29164.0,5.15466387]
[1609493347261,0.23991357,29169.0,29166.0,0.21786896]
[1609493347460,0.24011357,29169.0,29166.0,0.21786896]
[1609493347903,0.24011357,29170.0,29166.0,0.01786896]
[1609493348106,0.23991357,29167.0,29166.0,0.01786896]
[1609493348306,2.13991357,29167.0,29166.0,0.01786896]
[1609493348505,5.8652,29170.0,29166.0,0.01786896]
[1609493348506,0.23991357,29169.0,29166.0,0.01786896]
[1609493348809,0.165,29168.0,29166.0,0.01786896]
[1609493349001,2.05530657,29167.0,29166.0,0.01786896]
[1609493349199,0.60530657,29167.0,29166.0,0.01786896]
[1609493349501,5.365393,29167.0,29166.0,0.01786896]
[1609493349700,5.840393,29167.0,29166.0,0.01786896]
[1609493350200,5.840393,29167.0,29166.0,0.21786896]
[1609493350401,5.840393,29167.0,29166.0,0.01786896]
[1609493357490,5.835393,29167.0,29166.0,0.01786896]
[1609493366040,5.79325407,29167.0,29166.0,0.01786896]
[1609493370076,5.78825407,29167.0,29166.0,0.01786896]
[1609493375520,5.78825407,29167.0,29164.0,4.90197797]
[1609493375723,2.23991357,29166.0,29164.0,4.90197797]
[1609493376005,3.55030857,29165.0,29164.0,4.90197797]
[1609493376203,0.73491357,29165.0,29164.0,4.90197797]
[1609493376704,5.495,29165.0,29164.0,4.95763297]
[1609493377804,0.495,29165.0,29164.0,4.90197797]
[1609493378007,0.24011357,29169.0,29164.0,4.95763297]
[1609493378210,5.0,29165.0,29164.0,4.90197797]
[1609493378452,2.35,29165.0,29164.0,4.90197797]
[1609493378707,6.6,29165.0,29164.0,4.90197797]
[1609493378907,5.0,29165.0,29164.0,4.90197797]
[1609493379108,0.365395,29169.0,29164.0,4.90197797]
[1609493379310,0.2765,29170.0,29164.0,4.90197797]
[1609493379311,4.90326473,29165.0,29164.0,4.90197797]
[1609493379512,0.2765,29170.0,29164.0,4.90197797]
[1609493379513,5.0,29166.0,29164.0,4.90197797]
[1609493379712,5.0,29165.0,29164.0,4.90197797]
[1609493380113,0.60530857,29167.0,29164.0,4.90197797]
[1609493380326,5.365395,29165.0,29164.0,4.90197797]
[1609493380523,1.165395,29165.0,29164.0,4.90197797]
[1609493380825,6.40530857,29165.0,29164.0,4.90197797]
[1609493381125,1.165395,29165.0,29164.0,4.90197797]
[1609493381327,0.365395,29165.0,29164.0,4.90197797]
[1609493381626,5.365395,29165.0,29164.0,4.90197797]
[1609493381924,0.60530857,29165.0,29164.0,4.90197797]
[1609493382124,0.70530857,29165.0,29164.0,4.90197797]
[1609493382325,5.60530857,29165.0,29164.0,4.90197797]
[1609493382525,5.365395,29165.0,29164.0,4.90197797]
[1609493382728,0.705395,29165.0,29164.0,4.90197797]
[1609493382924,5.705395,29165.0,29164.0,4.90197797]
[1609493383125,0.34,29165.0,29164.0,4.95763297]
[1609493383427,5.0,29165.0,29164.0,4.90197797]
[1609493383627,5.0,29167.0,29164.0,4.90197797]
[1609493383827,0.60530857,29166.0,29164.0,4.90197797]
[1609493384128,5.84,29165.0,29164.0,4.90197797]
[1609493384329,5.835,29165.0,29164.0,4.90197797]
[1609493384830,6.200395,29165.0,29164.0,4.90197797]
[1609493385629,7.418015,29165.0,29164.0,4.90197797]
[1609493385829,7.518015,29165.0,29164.0,4.83060788]
[1609493387148,6.540415,29165.0,29164.0,4.83060788]
[1609493390353,7.518015,29165.0,29164.0,4.83060788]
[1609493390753,6.540415,29165.0,29164.0,4.83060788]
[1609493391047,7.518015,29165.0,29164.0,4.83060788]
[1609493391599,10.318015,29165.0,29164.0,4.82965688]
[1609493391788,8.918015,29165.0,29164.0,4.82965688]
[1609493392089,9.15792857,29165.0,29164.0,2.30117688]
[1609493392588,13.25792857,29165.0,29164.0,2.30017688]
[1609493392788,13.25792857,29165.0,29164.0,2.26449183]
[1609493393587,11.50792857,29165.0,29164.0,2.26449183]
[1609493393789,13.00792857,29165.0,29164.0,2.26449183]
[1609493394289,13.00792857,29165.0,29164.0,2.75109182]
[1609493394893,13.00792857,29165.0,29164.0,2.26349183]
[1609493395330,10.65792857,29165.0,29164.0,2.26349183]
[1609493396034,9.15792857,29165.0,29164.0,2.26349183]
[1609493396633,10.95792857,29165.0,29164.0,2.26349183]
[1609493396833,9.15792857,29165.0,29164.0,2.26349183]
[1609493397538,10.50792857,29165.0,29164.0,2.26349183]
[1609493398034,9.15792857,29165.0,29164.0,2.26349183]
[1609493398836,9.15812857,29165.0,29164.0,2.26349183]
[1609493399435,6.9276,29164.0,29161.0,0.2185]
[1609493399640,7.65530857,29162.0,29155.0,0.0008]
[1609493399841,0.365395,29160.0,29158.0,0.0004]
[1609493400037,2.23647787,29159.0,29158.0,0.0004]
[1609493400337,7.0857143,29159.0,29158.0,0.0004]
[1609493400636,3.32562787,29159.0,29158.0,0.0004]
[1609493400834,8.32562787,29159.0,29158.0,0.0004]
[1609493401045,9.32562787,29159.0,29158.0,0.0004]
[1609493401449,9.0857143,29159.0,29158.0,0.0004]
[1609493404752,8.1081143,29159.0,29158.0,0.0004]
[1609493405250,9.0857143,29159.0,29158.0,0.0004]
[1609493405651,8.1081143,29159.0,29158.0,0.0004]
[1609493405852,9.0857143,29159.0,29158.0,0.0004]
[1609493406083,8.1081143,29159.0,29158.0,0.0004]
[1609493406383,9.0857143,29159.0,29158.0,0.0004]
[1609493407387,5.95,29158.0,29156.0,0.131]
[1609493407593,7.55530857,29157.0,29156.0,0.0004]
[1609493407788,8.91939787,29157.0,29156.0,0.0004]
[1609493407988,13.91939787,29157.0,29156.0,0.0004]
[1609493408189,13.6794843,29157.0,29156.0,0.0004]
[1609493408589,6.85,29156.0,29155.0,0.0002]
[1609493408790,10.11939787,29156.0,29155.0,0.0002]
[1609493408991,15.37799787,29156.0,29155.0,0.0002]
[1609493409189,15.1380843,29156.0,29155.0,0.0002]
[1609493409390,15.0080843,29156.0,29155.0,0.0002]
[1609493409692,15.0080843,29156.0,29155.0,0.10267605]
[1609493410389,15.0080843,29156.0,29155.0,0.0002]
[1609493410594,8.60530857,29155.0,29154.0,0.4386]
[1609493410789,9.96939787,29155.0,29154.0,0.4386]
[1609493410990,8.7794843,29155.0,29154.0,0.4386]
[1609493411292,8.415395,29155.0,29154.0,0.4386]
[1609493411592,8.415395,29155.0,29154.0,0.5409458]
[1609493411790,8.415395,29155.0,29154.0,0.4386]
[1609493412401,7.365395,29155.0,29154.0,0.4386]
[1609493412902,7.365395,29155.0,29154.0,0.54141914]
[1609493413102,7.332395,29155.0,29154.0,0.54141914]
[1609493413302,7.532395,29155.0,29154.0,0.54141914]
[1609493413503,7.325795,29155.0,29154.0,0.4386]
[1609493413904,7.324495,29155.0,29154.0,0.4386]
[1609493414405,7.324195,29155.0,29154.0,0.4386]
[1609493414604,7.524195,29155.0,29154.0,0.54022549]
[1609493415205,7.524195,29155.0,29154.0,0.68161224]
[1609493415505,7.417545,29155.0,29154.0,0.68161224]
[1609493415703,7.384745,29155.0,29154.0,0.68161224]
[1609493416006,7.178245,29155.0,29154.0,0.68161224]
[1609493416505,7.120095,29155.0,29154.0,0.68161224]
[1609493416702,7.119795,29155.0,29154.0,0.68161224]
[1609493417202,7.119795,29155.0,29154.0,0.57998675]
[1609493417503,6.982895,29155.0,29154.0,0.57998675]
[1609493418132,7.182895,29155.0,29154.0,0.57998675]
[1609493418333,7.182895,29155.0,29154.0,0.6832175]
[1609493418531,6.982895,29155.0,29154.0,0.6832175]
[1609493420836,7.182895,29155.0,29154.0,0.54183075]
[1609493421121,7.182895,29155.0,29154.0,0.57998675]
[1609493421322,6.982895,29155.0,29154.0,0.57998675]
[1609493421522,7.182895,29155.0,29154.0,0.57998675]
[1609493421728,6.982895,29155.0,29154.0,0.57998675]
[1609493421928,7.43483115,29155.0,29154.0,0.57998675]
[1609493422125,7.40653115,29155.0,29154.0,0.57998675]
[1609493422524,7.60083115,29155.0,29154.0,0.57998675]
[1609493422926,7.59973115,29155.0,29154.0,0.57998675]
[1609493423326,7.39973115,29155.0,29154.0,0.57998675]
[1609493423987,7.39973115,29155.0,29154.0,1.01708675]
[1609493424180,2.03433615,29155.0,29154.0,1.50815514]
[1609493424486,1.27424972,29155.0,29154.0,1.56385214]
[1609493424677,1.27424972,29155.0,29154.0,1.36385214]
[1609493424879,1.15684972,29155.0,29154.0,1.07278375]
[1609493425081,0.69184972,29155.0,29154.0,1.07278375]
[1609493425278,0.45193615,29155.0,29154.0,1.07278375]
[1609493425480,0.45193615,29155.0,29154.0,1.27278375]
[1609493425680,0.45193615,29155.0,29154.0,1.07278375]
[1609493425984,0.41771861,29155.0,29154.0,3.61125187]
[1609493426182,0.41771861,29155.0,29154.0,1.51125187]
[1609493426384,0.41086197,29155.0,29154.0,1.31125187]
[1609493426681,0.40948801,29155.0,29154.0,2.75625187]
[1609493427082,0.4092127,29155.0,29154.0,2.75625187]
[1609493427309,0.4092127,29155.0,29154.0,1.10625187]
[1609493427509,0.4092127,29155.0,29154.0,1.26278375]
[1609493427711,0.3942127,29155.0,29154.0,3.46278375]
[1609493427910,0.3942127,29155.0,29154.0,1.26278375]
[1609493428215,0.3942127,29155.0,29154.0,1.27827136]
[1609493428411,0.3942127,29155.0,29154.0,1.07827136]
[1609493430413,0.3942127,29155.0,29154.0,0.88827136]
[1609493431115,0.38900408,29155.0,29154.0,2.58827136]
[1609493431412,0.38900408,29155.0,29154.0,1.08827136]
[1609493437399,0.38900408,29155.0,29154.0,0.94688461]
[1609493437598,0.38900408,29155.0,29154.0,1.16188461]
[1609493437803,0.38900408,29155.0,29154.0,0.94688461]
[1609493438503,0.38900408,29155.0,29154.0,1.08828986]
[1609493439205,0.38900408,29155.0,29154.0,0.88828986]
[1609493439405,0.38900408,29155.0,29154.0,1.08828986]
[1609493439908,0.38900408,29155.0,29154.0,0.88828986]
[1609493440333,0.38900408,29155.0,29154.0,1.08828986]
[1609493440531,0.38900408,29155.0,29154.0,0.88828986]
[1609493440734,0.38900408,29155.0,29154.0,0.65118986]
[1609493441334,0.38900408,29155.0,29154.0,0.50978461]
[1609493442333,0.38900408,29155.0,29154.0,0.65118986]
[1609493442634,0.38900408,29155.0,29154.0,0.43188986]
[1609493442831,0.54400408,29155.0,29154.0,0.43188986]
[1609493443229,0.38900408,29155.0,29154.0,0.43188986]
[1609493443432,0.38900408,29155.0,29154.0,0.29048461]
[1609493444235,0.36170112,29155.0,29154.0,2.59048461]
[1609493444437,0.36170112,29155.0,29154.0,3.05548461]
[1609493444636,0.35623079,29155.0,29154.0,0.89688986]
[1609493444837,0.35623079,29155.0,29154.0,0.43188986]
[1609493445139,0.35623079,29155.0,29154.0,0.63188986]
[1609493445537,0.35623079,29155.0,29154.0,0.29048461]
[1609493445958,0.35623079,29155.0,29154.0,2.44048461]
[1609493446258,0.35623079,29155.0,29154.0,2.98562461]
[1609493446461,0.35623079,29155.0,29154.0,0.83562461]
[1609493446657,0.35623079,29155.0,29154.0,0.39562461]
[1609493446861,0.35623079,29155.0,29154.0,0.53702986]
[1609493449462,0.3528378,29155.0,29154.0,2.57702986]
[1609493449662,0.3528378,29155.0,29154.0,3.55202986]
[1609493449663,0.3521579,29155.0,29154.0,3.55202986]
[1609493450159,0.3521579,29155.0,29154.0,1.15202986]
[1609493450362,0.3521579,29155.0,29154.0,0.72702986]
[1609493452221,0.34738725,29155.0,29154.0,0.72702986]
[1609493454523,0.34738725,29155.0,29154.0,0.58562461]
[1609493454724,0.34453,29155.0,29154.0,3.16062461]
[1609493455022,0.3439573,29155.0,29154.0,2.71062461]
[1609493455635,0.3439573,29155.0,29154.0,0.90202986]
[1609493456034,0.3439573,29155.0,29154.0,0.79688986]
[1609493456735,0.3439573,29155.0,29154.0,0.65548461]
[1609493457347,0.3439573,29155.0,29154.0,0.28848264]
[1609493457838,0.32604373,29155.0,29154.0,2.17988789]
[1609493458135,0.32604373,29155.0,29154.0,0.42988789]
[1609493459436,0.32604373,29155.0,29154.0,0.62988789]
[1609493459636,0.32604373,29155.0,29154.0,0.63848264]
[1609493459836,0.27299297,29155.0,29154.0,0.63848264]
[1609493460137,0.2623599,29155.0,29154.0,3.83848264]
[1609493460337,0.2623599,29155.0,29154.0,0.83848264]
[1609493460534,0.2623599,29155.0,29154.0,3.02988789]
[1609493460535,0.25137539,29155.0,29154.0,3.02988789]
[1609493460839,0.24917337,29155.0,29154.0,3.02988789]
[1609493461068,0.24917337,29155.0,29154.0,0.57988789]
[1609493461069,0.22937793,29155.0,29154.0,0.57988789]
[1609493461369,0.2060556,29155.0,29154.0,2.57988789]
[1609493461767,0.20138026,29155.0,29154.0,2.57988789]
[1609493461969,0.20044298,29155.0,29154.0,1.57988789]
[1609493462268,0.20044298,29155.0,29154.0,0.57988789]
[1609493462568,0.17298804,29155.0,29154.0,0.57988789]
[1609493462768,0.167485,29155.0,29154.0,2.42988789]
[1609493462969,0.16638198,29155.0,29154.0,2.17988789]
[1609493463170,0.16638198,29155.0,29154.0,0.57988789]
[1609493463374,0.16616089,29155.0,29154.0,2.62988789]
[1609493463771,0.16616089,29155.0,29154.0,0.57988789]
[1609493463974,0.26616089,29155.0,29154.0,0.57988789]
[1609493464172,0.26616089,29155.0,29154.0,0.42988789]
[1609493464471,0.26616089,29155.0,29154.0,0.28848264]
[1609493464726,0.23884906,29155.0,29154.0,1.08848264]
[1609493464872,0.23884906,29155.0,29154.0,0.28848264]
[1609493465072,0.23337621,29155.0,29154.0,0.28848264]
[1609493465272,0.23227954,29155.0,29154.0,0.28848264]
[1609493465670,0.23205978,29155.0,29154.0,1.88848264]
[1609493465872,0.23205978,29155.0,29154.0,0.28848264]
[1609493466255,0.22705978,29155.0,29154.0,0.28848264]
[1609493467350,0.14982897,29155.0,29154.0,0.28848264]
[1609493467551,0.13435315,29155.0,29154.0,0.42988789]
[1609493467949,0.03125204,29155.0,29154.0,0.42988789]
[1609493468149,0.03063061,29155.0,29154.0,0.42988789]
[1609493468577,0.13063061,29155.0,29154.0,0.28848264]
[1609493469879,0.1,29155.0,29154.0,0.28848264]
[1609493470078,0.1,29155.0,29154.0,0.45348264]
[1609493470279,0.31125957,29155.0,29154.0,0.45348264]
[1609493470784,0.3085188,29155.0,29154.0,0.45348264]
[1609493470982,0.30796967,29155.0,29154.0,0.45348264]
[1609493471783,0.30796967,29155.0,29154.0,0.59488789]
[1609493471986,0.30796967,29155.0,29154.0,0.37419089]
[1609493472380,0.19879872,29155.0,29154.0,0.37419089]
[1609493472680,0.1769256,29155.0,29154.0,0.37419089]
[1609493472881,0.1769256,29155.0,29154.0,0.23278564]
[1609493473079,0.17254303,29155.0,29154.0,0.23278564]
[1609493473582,0.17166507,29155.0,29154.0,0.23278564]
[1609493474697,0.17094063,29155.0,29154.0,0.23278564]
[1609493475797,0.53633563,29155.0,29154.0,0.23278564]
[1609493475996,0.69133563,29155.0,29154.0,0.23278564]
[1609493476403,0.32594063,29155.0,29154.0,0.28848264]
[1609493476604,0.17094063,29155.0,29154.0,0.28848264]
[1609493477003,0.08894518,29155.0,29154.0,0.28848264]
[1609493477305,0.08894518,29155.0,29154.0,0.42988789]
[1609493477901,0.08894518,29155.0,29154.0,0.58488789]
[1609493478903,0.08894518,29155.0,29154.0,0.44348264]
[1609493479307,0.18894518,29155.0,29154.0,0.28848264]
[1609493479929,0.18894518,29155.0,29154.0,0.23278564]
[1609493480728,0.08894518,29155.0,29154.0,0.23278564]
[1609493481027,0.18894518,29155.0,29154.0,0.23278564]
[1609493481289,0.16894518,29155.0,29154.0,0.23278564]
[1609493482531,0.06894518,29155.0,29154.0,0.37419089]
[1609493483228,0.16894518,29155.0,29154.0,0.37419089]
[1609493483931,0.06894518,29155.0,29154.0,0.23278564]
[1609493484431,0.05252472,29155.0,29154.0,0.23278564]
[1609493484832,0.04923523,29155.0,29154.0,0.28848264]
[1609493485035,0.02755018,29155.0,29154.0,0.42988789]
[1609493485448,0.02320603,29155.0,29154.0,0.42988789]
[1609493485649,0.12320603,29155.0,29154.0,0.42988789]
[1609493485848,0.10145801,29155.0,29154.0,0.42988789]
[1609493486047,0.09710124,29155.0,29154.0,0.42988789]
[1609493486548,0.09622846,29155.0,29154.0,0.42988789]
[1609493487752,0.09622846,29155.0,29154.0,0.28848264]
[1609493487952,0.33614203,29155.0,29154.0,0.28848264]
[1609493488149,0.09622846,29155.0,29154.0,0.28848264]
[1609493488552,0.1,29156.0,29154.0,0.28848264]
[1609493488750,0.09722893,29156.0,29154.0,0.23278564]
[1609493489053,0.09667386,29156.0,29154.0,0.37419089]
[1609493489455,0.09667386,29156.0,29155.0,0.055693]
[1609493490156,0.09667386,29156.0,29155.0,0.19709725]
[1609493490556,0.09667386,29156.0,29155.0,0.14140525]
[1609493490977,0.06922165,29156.0,29155.0,0.14140525]
[1609493491177,0.1,29157.0,29155.0,0.14140525]
[1609493491479,0.81489609,29156.0,29154.0,0.23278564]
[1609493491783,0.23991357,29155.0,29154.0,0.43278564]
[1609493491977,0.09977942,29157.0,29154.0,0.79508064]
[1609493492279,0.265,29156.0,29154.0,0.53278564]
[1609493492480,0.09977942,29157.0,29154.0,0.87419089]
[1609493492777,0.09977942,29157.0,29154.0,0.67419089]
[1609493494079,0.365404,29156.0,29154.0,0.67419089]
[1609493494480,0.22491357,29155.0,29154.0,0.73648589]
[1609493494682,0.09977942,29157.0,29154.0,0.67419089]
[1609493495082,0.09977942,29157.0,29154.0,0.87419089]
[1609493496637,0.17,29156.0,29154.0,0.87419089]
[1609493496822,0.09977942,29157.0,29155.0,0.3]
[1609493497021,0.360404,29156.0,29155.0,0.44140525]
[1609493497522,0.09977942,29157.0,29155.0,0.44140525]
[1609493497725,0.355,29156.0,29155.0,0.44140525]
[1609493497921,0.09977942,29157.0,29155.0,0.44140525]
[1609493498422,0.09977942,29157.0,29156.0,0.067289]
[1609493498621,0.09977942,29157.0,29156.0,0.14140525]
[1609493499424,0.22491357,29158.0,29156.0,0.14140525]
[1609493500026,0.22491357,29158.0,29157.0,0.25]
[1609493500225,0.22491357,29158.0,29157.0,0.39140525]
[1609493500464,0.22491357,29158.0,29157.0,0.38640525]
[1609493500764,0.22491357,29158.0,29157.0,0.45269025]
[1609493501564,0.22491357,29158.0,29157.0,0.03554811]
[1609493501766,0.22114583,29158.0,29156.0,0.2]
[1609493501965,0.47614583,29158.0,29155.0,1.20440329]
[1609493502166,0.205,29157.0,29155.0,1.00440329]
[1609493502367,0.205,29157.0,29156.0,0.035548]
[1609493503067,0.205,29157.0,29156.0,0.034548]
[1609493503671,0.2,29157.0,29156.0,0.034548]
[1609493504670,0.22039114,29158.0,29156.0,0.334548]
[1609493504980,0.22039114,29162.0,29157.0,0.49652456]
[1609493505172,0.20252314,29162.0,29161.0,5.934536]
[1609493505378,0.5404135,29166.0,29162.0,1.3]
[1609493505577,0.48756594,29166.0,29165.0,5.952421]
[1609493505880,0.48756594,29166.0,29165.0,6.67058682]
[1609493505881,0.0814181,29166.0,29165.0,6.67058682]
[1609493506097,0.00123284,29177.0,29169.0,0.01978134]
[1609493506298,0.00123284,29177.0,29170.0,0.134496]
[1609493506491,0.00123284,29177.0,29170.0,0.16796412]
[1609493506690,0.00123284,29177.0,29171.0,0.255]
[1609493506892,0.00123284,29177.0,29172.0,0.034491]
[1609493507091,0.00123284,29177.0,29175.0,0.48370078]
[1609493507292,0.00123284,29177.0,29176.0,1.834481]
[1609493507492,0.00123284,29177.0,29176.0,0.384481]
[1609493507691,0.00123284,29177.0,29176.0,0.034481]
[1609493510898,0.10018621,29178.0,29176.0,0.034481]
[1609493511674,0.0002,29178.0,29176.0,0.034481]
[1609493511861,4.879,29179.0,29177.0,3.1]
[1609493512062,4.879,29179.0,29178.0,2.884475]
[1609493512258,4.879,29179.0,29178.0,0.384474]
[1609493512460,4.8547,29179.0,29178.0,3.134474]
[1609493512657,4.8547,29179.0,29178.0,0.034474]
[1609493512860,4.8547,29179.0,29178.0,1.634474]
[1609493512861,4.8498,29179.0,29178.0,1.634474]
[1609493513359,4.8488,29179.0,29178.0,0.034245]
[1609493513585,4.8486,29179.0,29178.0,0.034245]
[1609493515184,4.8214,29179.0,29178.0,0.034245]
[1609493515487,4.8159,29179.0,29178.0,1.534245]
[1609493515687,0.83855464,29180.0,29178.0,0.01339673]
[1609493515887,0.93854085,29180.0,29179.0,0.03572067]
[1609493516088,1.34854085,29180.0,29179.0,0.03572067]
[1609493516286,0.93834085,29180.0,29179.0,0.03572067]
[1609493516688,0.83835464,29180.0,29179.0,0.03572067]
[1609493516888,0.67455464,29180.0,29179.0,0.03572067]
[1609493517888,0.58705464,29180.0,29179.0,0.03572067]
[1609493518488,0.58705464,29180.0,29179.0,0.06496467]
[1609493518687,0.56955464,29180.0,29179.0,0.06496467]
[1609493518889,0.56605464,29180.0,29179.0,0.06496467]
[1609493519317,0.56535464,29180.0,29179.0,0.06496467]
[1609493520317,0.90535464,29180.0,29179.0,0.06496467]
[1609493520919,0.34,29180.0,29179.0,0.06496467]
[1609493521121,0.31,29180.0,29179.0,0.81496467]
[1609493521329,0.0002,29181.0,29179.0,3.51496467]
[1609493521523,0.0002,29182.0,29179.0,3.71496467]
[1609493521727,0.0002,29182.0,29180.0,0.38]
[1609493521920,0.10078621,29184.0,29179.0,0.81496467]
[1609493522122,0.78190254,29180.0,29179.0,1.48072067]
[1609493522322,0.77920254,29180.0,29179.0,0.24996367]
[1609493522521,0.77860254,29180.0,29179.0,2.61496367]
[1609493522723,0.77860254,29180.0,29179.0,0.06496367]
[1609493523123,0.77860254,29180.0,29179.0,1.56496367]
[1609493523323,0.77860254,29180.0,29179.0,1.84496367]
[1609493524027,0.77860254,29180.0,29179.0,0.34496367]
[1609493524226,0.77860254,29180.0,29179.0,0.06496367]
[1609493524625,0.67620254,29180.0,29179.0,2.56496367]
[1609493525039,0.65570254,29180.0,29179.0,2.56496367]
[1609493525240,0.65160254,29180.0,29179.0,3.19496367]
[1609493525641,0.65080254,29180.0,29179.0,4.34496367]
[1609493525940,0.65060254,29180.0,29179.0,3.39496367]
[1609493526459,0.65060254,29180.0,29179.0,0.44496367]
[1609493526646,0.65060254,29180.0,29179.0,0.26496367]
[1609493527042,0.65060254,29180.0,29179.0,1.47835366]
[1609493527244,0.51690254,29180.0,29179.0,2.12835366]
[1609493527442,0.51690254,29180.0,29179.0,2.48835366]
[1609493527642,0.49010254,29180.0,29179.0,2.48835366]
[1609493528043,0.48480254,29180.0,29179.0,2.48835366]
[1609493528344,0.48370254,29180.0,29179.0,3.93835366]
[1609493528544,0.48350254,29180.0,29179.0,4.13835366]
[1609493528742,0.48350254,29180.0,29179.0,2.68835366]
[1609493528944,0.48350254,29180.0,29179.0,2.48835366]
[1609493529347,0.48350254,29180.0,29179.0,2.68835366]
[1609493529644,0.48350254,29180.0,29179.0,0.43835366]
[1609493529843,0.48350254,29180.0,29179.0,0.07835366]
[1609493531065,0.48350254,29180.0,29179.0,1.97835366]
[1609493532382,0.48350254,29180.0,29179.0,2.35835366]
[1609493532671,0.48350254,29180.0,29179.0,2.55835366]
[1609493533069,0.48350254,29180.0,29179.0,3.95835366]
[1609493533266,0.48350254,29180.0,29179.0,2.65835366]
[1609493533570,0.48350254,29180.0,29179.0,0.45835366]
[1609493533768,0.48350254,29180.0,29179.0,0.07835366]
[1609493533966,0.48350254,29180.0,29179.0,1.97835366]
[1609493534171,0.48350254,29180.0,29179.0,2.02033366]
[1609493534370,0.48350254,29180.0,29179.0,0.12033366]